fUSD/lending_fUSD_20240205
["ID","MTS","AMOUNT","RATE_DAILY","PERIOD"]
[313313189,1707141041411,-944.34692555,0.00022768,2]
[313313190,1707141041421,-4649.82965175,0.00022768,2]
[313313191,1707141041434,-1053.34867801,0.00022768,2]
[313313192,1707141041445,-496.38960324,0.00022768,2]
[313313193,1707141041455,-142264.7349203,0.0002277,2]
[313313194,1707141041465,-728.3,0.0002277,2]
[313313195,1707141041475,-500.0,0.00022816,2]
[313313196,1707141041485,-800.0,0.00022816,2]
[313313197,1707141041495,-207.61,0.00022874,2]
[313313198,1707141041505,-161.57006629,0.0002289,2]
[313313199,1707141041515,-114437.3410869,0.000229,2]
[313313200,1707141041525,-210.0,0.000229,2]
[313313201,1707141041534,-179.52421724,0.000229,2]
[313313202,1707141041544,-11548.71831177,0.000229,2]
[313313204,1707141041552,-629.0347994,0.000229,2]
[313313205,1707141041561,-152.57148154,0.000229,2]
[313313206,1707141041570,-2738.13173277,0.000229,2]
[313313208,1707141041580,-520.66768519,0.00022913,2]
[313313209,1707141041589,-5000.0,0.00022964,2]
[313313210,1707141041598,-3355.0489422,0.00022997,2]
[313313211,1707141041608,-59436.25,0.00022997,2]
[313313212,1707141041617,-19420.555,0.00022997,2]
[313313213,1707141041626,-37338.3733333,0.00022997,2]
[313313214,1707141041635,-488.30305157,0.00022998,2]
[313313215,1707141041645,-203.66449039,0.00022998,2]
[313313216,1707141041654,-284.1871695,0.00022998,2]
[313313217,1707141041663,-500.0,0.00022998,2]
[313313218,1707141041673,-4258.86050347,0.00022998,2]
[313313219,1707141041684,-400.0,0.00022998,2]
[313313220,1707141041693,-362.75639342,0.00022998,2]
[313313221,1707141041703,-315.18305531,0.00022998,2]
[313313222,1707141041712,-247.40585287,0.00022998,2]
[313313223,1707141041722,-218.60895009,0.00022998,2]
[313313224,1707141041731,-727.95,0.00022999,2]
[313313225,1707141041742,-171.90904688,0.00022999,2]
[313313226,1707141041751,-1496.16150348,0.00022999,2]
[313313227,1707141041761,-500.0,0.00022999,2]
[313313228,1707141041772,-500.0,0.00022999,2]
[313313229,1707141041782,-500.0,0.00022999,2]
[313313230,1707141041792,-500.0,0.00022999,2]
[313313231,1707141041801,-500.0,0.00022999,2]
[313313232,1707141041810,-500.0,0.00022999,2]
[313313233,1707141041819,-500.0,0.00022999,2]
[313313234,1707141041828,-500.0,0.00022999,2]
[313313235,1707141041836,-388.82601801,0.00022999,2]
[313313236,1707141041846,-500.0,0.00022999,2]
[313313237,1707141041854,-500.0,0.00022999,2]
[313313238,1707141041863,-1102.66558841,0.00022999,2]
[313313239,1707141041872,-48191.64254073,0.00022999,2]
[313313240,1707141041881,-364769.33332521,0.00023,2]
[313313241,1707141041891,-540566.77880124,0.00023,2]
[313313242,1707141041900,-3258.93526616,0.00023,2]
[313313243,1707141041909,-1088.9622463,0.00023,2]
[313313244,1707141041918,-35027.04594352,0.00023,2]
[313313245,1707141041927,-241.83973937,0.00023,2]
[313313246,1707141041936,-200.0,0.00023,2]
[313313247,1707141041946,-2613.40994727,0.00023,2]
[313313248,1707141041956,-990.0,0.00023,7]
[313313249,1707141041966,-990.0,0.00023,7]
[313313250,1707141041975,-990.0,0.00023,7]
[313313251,1707141041984,-990.0,0.00023,7]
[313313252,1707141041993,-990.0,0.00023,7]
[313313253,1707141042002,-990.0,0.00023,7]
[313313254,1707141042012,-990.0,0.00023,7]
[313313255,1707141042021,-1015.083924,0.00023,7]
[313313256,1707141042030,-161.57006629,0.00023003,2]
[313313257,1707141042039,-12670.8125806,0.00023013,2]
[313313258,1707141042049,-24098.1553504,0.00023013,2]
[313313259,1707141042059,-300.0,0.00023073,2]
[313313260,1707141042068,-176.95,0.00023096,2]
[313313261,1707141042263,-500.0,0.00023096,2]
[313313262,1707141042272,-1460.9270016,0.00023153,2]
[313313263,1707141042282,-1246.11850231,0.00023266,2]
[313313264,1707141042292,-1180.37394421,0.00023297,2]
[313313265,1707141042302,-10060.72,0.00023389,2]
[313313266,1707141042312,-19195.47966383,0.000236,2]
[313313267,1707141042321,-176.95,0.00023644,2]
[313313268,1707141042330,-500.0,0.00023644,2]
[313313269,1707141042340,-167.0,0.00023691,2]
[313313270,1707141042349,-506.64,0.0002383,2]
[313313271,1707141042358,-207.61,0.00023963,2]
[313313272,1707141042368,-202.19917165,0.00024,2]
[313313273,1707141042377,-152.57148148,0.00024041,2]
[313313274,1707141042386,-176.95,0.00024192,2]
[313313275,1707141042395,-500.0,0.00024192,2]
[313313276,1707141042404,-167.43938214,0.000243,2]
[313313277,1707141042413,-1358.1,0.00024357,2]
[313313278,1707141042422,-300.0,0.00024442,2]
[313313279,1707141042433,-517.4,0.00024465,2]
[313313280,1707141042441,-603.25,0.00024528,2]
[313313281,1707141042450,-250.0,0.00024658,2]
[313313282,1707141042460,-506.64,0.00024672,2]
[313313283,1707141042469,-1000.0,0.000247,2]
[313313284,1707141042479,-176.95,0.0002474,2]
[313313285,1707141042488,-500.0,0.0002474,2]
[313313286,1707141042497,-210.0,0.00024793,2]
[313313287,1707141042506,-157.18657054,0.000249,2]
[313313288,1707141042516,-51035.126046,0.000249,2]
[313313289,1707141042525,-167.0,0.00024927,2]
[313313290,1707141042535,-64561.70863308,0.00025,4]
[313313291,1707141042544,-159.24196843,0.00025,2]
[313313292,1707141042553,-305.19950288,0.00025,2]
[313313293,1707141042562,-1905.81852245,0.00025,2]
[313313294,1707141042572,-324.08880532,0.00025,2]
[313313295,1707141042581,-429.18103998,0.00025,2]
[313313296,1707141042590,-203.47775609,0.00025,2]
[313313297,1707141042599,-167.92991373,0.00025,2]
[313313298,1707141042609,-1593.05909306,0.00025,2]
[313313299,1707141042619,-938.67212516,0.00025,2]
[313313300,1707141042628,-350.0,0.00025,3]
[313313301,1707141042638,-1253.35321442,0.00025,2]
[313313302,1707141042648,-3000.0,0.00025,2]
[313313303,1707141042657,-3000.0,0.0002501,2]
[313313304,1707141042666,-63846.0,0.00025014,2]
[313313305,1707141042676,-3000.0,0.0002502,2]
[313313306,1707141042687,-3000.0,0.0002503,2]
[313313307,1707141042696,-10060.72,0.00025033,2]
[313313309,1707141042705,-3000.0,0.0002504,2]
[313313310,1707141042715,-5866.293549,0.0002505,2]
[313313312,1707141042724,-207.61,0.00025052,2]
[313313314,1707141042733,-152.57148148,0.00025182,2]
[313313316,1707141042743,-11548.71831169,0.00025264,2]
[313313318,1707141042752,-176.95,0.00025288,2]
[313313320,1707141042761,-500.0,0.00025288,2]
[313313322,1707141042770,-506.64,0.00025515,2]
[313313323,1707141042780,-156.10464801,0.000256,2]
[313313324,1707141042790,-6641.38527272,0.00025836,5]
[313313325,1707141042799,-176.95,0.00025836,2]
[313313326,1707141042808,-669.74397952,0.00025836,2]
[313313327,1707141042817,-1612.08631409,0.00026,2]
[313313328,1707141042827,-500.0,0.00026,2]
[313313329,1707141042836,-500.0,0.00026,2]
[313313330,1707141042845,-500.0,0.00026,2]
[313313331,1707141042854,-295.26,0.00026,2]
[313313332,1707141042863,-150.0,0.00026079,2]
[313313333,1707141042872,-4370.5,0.0002609,2]
[313313334,1707141042882,-207.61,0.00026142,2]
[313313335,1707141042891,-167.84,0.00026142,2]
[313313336,1707141042900,-167.0,0.00026162,2]
[313313337,1707141042909,-206.0,0.00026244,7]
[313313338,1707141042918,-152.57148148,0.00026323,2]
[313313339,1707141042929,-506.64,0.00026358,2]
[313313340,1707141042938,-176.95,0.00026384,2]
[313313341,1707141042947,-1614.785869,0.000265,2]
[313313342,1707141042956,-1358.1,0.00026621,2]
[313313343,1707141042965,-10060.72,0.00026677,2]
[313313344,1707141042974,-348.38886258,0.00026932,2]
[313313345,1707141042983,-495.8078691,0.00026999,2]
[313313346,1707141042992,-452.36809141,0.00026999,2]
[313313347,1707141043001,-500.0,0.00026999,2]
[313313348,1707141043010,-425.98536487,0.00026999,2]
[313313349,1707141043019,-368.81869364,0.00026999,2]
[313313350,1707141043028,-283.48562289,0.00026999,2]
[313313351,1707141043037,-417.3581,0.00027,2]
[313313352,1707141043047,-3152.0,0.00027,2]
[313313353,1707141043059,-23998.0,0.00027,2]
[313313354,1707141043067,-400.0,0.00027,3]
[313313355,1707141043076,-500.0,0.00027,7]
[313313356,1707141043085,-351.447137,0.00027,2]
[313313357,1707141043096,-200.0,0.00027,2]
[313313358,1707141043106,-1500.0,0.00027,2]
[313313359,1707141043115,-3389.57,0.00027123,2]
[313313360,1707141043124,-517.4,0.00027183,2]
[313313361,1707141043133,-506.64,0.00027201,2]
[313313362,1707141043143,-603.25,0.00027253,2]
[313313363,1707141043153,-151.11287143,0.0002727,2]
[313313364,1707141043162,-180.0,0.00027272,2]
[313313365,1707141043171,-14557.72,0.00027397,2]
[313313366,1707141043182,-39416.38,0.00027397,2]
[313313367,1707141043191,-11779.11,0.00027397,2]
[313313368,1707141043200,-3617.86,0.000274,2]
[313313369,1707141043209,-3617.86,0.000274,2]
[313313370,1707141043219,-3617.86,0.000274,2]
[313313371,1707141043228,-3617.86,0.000274,2]
[313313372,1707141043237,-3617.86,0.000274,2]
[313313373,1707141043246,-3617.86,0.000274,2]
[313313374,1707141043255,-3617.86,0.000274,2]
[313313375,1707141043265,-3617.86,0.000274,2]
[313313376,1707141043274,-3617.86,0.000274,2]
[313313377,1707141043283,-3617.86,0.000274,2]
[313313378,1707141043292,-152.57148148,0.00027464,2]
[313313379,1707141043301,-200.0,0.000275,2]
[313313380,1707141043310,-150.0,0.0002751,2]
[313313381,1707141043320,-11779.11,0.00027556,2]
[313313382,1707141043329,-11548.71831169,0.00027627,2]
[313313383,1707141043339,-11779.11,0.00027714,2]
[313313384,1707141043349,-11779.11,0.00027872,2]
[313313385,1707141043358,-10808.41235544,0.00028,2]
[313313386,1707141043367,-691.30165197,0.00028,2]
[313313387,1707141043377,-14559.09615245,0.00028,2]
[313313388,1707141043387,-291.18192304,0.00028,2]
[313313389,1707141043396,-200.0,0.00028,2]
[313313390,1707141043406,-11779.11,0.0002803,2]
[313313391,1707141043414,-506.64,0.00028044,2]
[313313392,1707141043423,-150.0,0.00028058,2]
[313313393,1707141043435,-11779.11,0.00028189,2]
[313313394,1707141043444,-10060.72,0.0002832,2]
[313313395,1707141043453,-11779.11,0.00028347,2]
[313313396,1707141043462,-200.0,0.000285,2]
[313313397,1707141043471,-11779.11,0.00028505,2]
[313313398,1707141043480,-152.57148148,0.00028605,2]
[313313399,1707141043489,-150.0,0.00028606,2]
[313313400,1707141043498,-11779.11,0.00028664,2]
[313313401,1707141043508,-11779.11,0.00028822,2]
[313313402,1707141043517,-1358.1,0.00028885,2]
[313313403,1707141043526,-506.64,0.00028886,2]
[313313404,1707141043535,-157.75726187,0.00029,2]
[313313405,1707141043545,-450.0,0.00029,3]
[313313406,1707141043558,-155.0,0.00029,2]
[313313407,1707141043567,-200.0,0.00029,2]
[313313408,1707141043576,-166.51155624,0.00029113,2]
[313313409,1707141043585,-150.0,0.00029154,2]
[313313410,1707141043595,-167.82181749,0.00029702,2]
[313313411,1707141043605,-152.57148148,0.00029746,2]
[313313412,1707141043614,-176.16063203,0.000298,2]
[313313413,1707141043623,-1108.12,0.00029815,2]
[313313414,1707141043632,-1535.38,0.00029815,2]
[313313415,1707141043642,-19810.54,0.00029815,2]
[313313416,1707141043652,-420.69,0.00029815,2]
[313313417,1707141043662,-517.4,0.00029902,2]
[313313418,1707141043671,-1374.51,0.0002993,2]
[313313419,1707141043680,-394.963,0.0002993,2]
[313313420,1707141043689,-950.0,0.0002993,2]
[313313421,1707141043699,-2867.0,0.0002993,2]
[313313422,1707141043708,-839.0,0.0002993,2]
[313313423,1707141043718,-1102.593,0.0002993,2]
[313313424,1707141043727,-428.0,0.0002993,2]
[313313425,1707141043736,-1001.0,0.0002993,2]
[313313426,1707141043745,-214.956,0.0002993,2]
[313313427,1707141043755,-236.0,0.0002993,2]
[313313428,1707141043764,-1943.0,0.0002993,2]
[313313429,1707141043774,-320.0,0.0002993,2]
[313313430,1707141043783,-1138.0,0.0002993,2]
[313313431,1707141043793,-860.0,0.0002993,2]
[313313432,1707141043802,-150.0,0.0002993,2]
[313313433,1707141043811,-444.0,0.0002993,2]
[313313434,1707141043820,-2464.847,0.0002993,2]
[313313435,1707141043830,-285.833,0.0002993,2]
[313313436,1707141043839,-2282.0,0.0002993,2]
[313313438,1707141043849,-1201.516,0.0002993,2]
[313313440,1707141043858,-1871.831,0.0002993,2]
[313313442,1707141043868,-150.0,0.0002993,2]
[313313444,1707141043877,-150.0,0.0002993,2]
[313313445,1707141043886,-150.0,0.0002993,2]
[313313446,1707141043895,-151.008,0.0002993,2]
[313313447,1707141043904,-1034.0,0.0002993,2]
[313313449,1707141043913,-150.258,0.0002993,2]
[313313451,1707141043922,-150.0,0.0002993,2]
[313313453,1707141043932,-208.979,0.0002993,2]
[313313455,1707141043940,-150.0,0.0002993,2]
[313313457,1707141043949,-150.26,0.0002993,2]
[313313458,1707141043959,-200.146,0.0002993,2]
[313313459,1707141043968,-10060.72,0.00029964,2]
[313313460,1707141043977,-603.25,0.00029978,2]
[313313461,1707141043987,-11548.71831169,0.00029991,2]
[313313462,1707141043996,-206.0,0.00029995,13]
[313313463,1707141044006,-155.0,0.0003,2]
[313313464,1707141044015,-402.245962,0.0003,4]
[313313465,1707141044025,-1324.3982591,0.0003,4]
[313313466,1707141044035,-549.86550808,0.0003,4]
[313313467,1707141044044,-4838.51495438,0.0003,4]
[313313468,1707141044056,-9689.23873738,0.0003,2]
[313313469,1707141044065,-694.31782489,0.0003,2]
[313313470,1707141044077,-153.77,0.0003,2]
[313313471,1707141044086,-3000.0,0.0003,2]
[313313472,1707141044097,-585.77293183,0.0003,2]
[313313473,1707141044106,-150.025711,0.0003,2]
[313313474,1707141044117,-360.03986819,0.0003,2]
[313313475,1707141044126,-39906.286831,0.0003,2]
[313313476,1707141044136,-5638.26868636,0.0003,2]
[313313477,1707141044149,-451.91910695,0.0003,2]
[313313479,1707141044158,-3000.0,0.0003,2]
[313313480,1707141044168,-3000.0,0.0003,2]
[313313482,1707141044177,-3000.0,0.0003,2]
[313313484,1707141044187,-205.0,0.0003,2]
[313313486,1707141044197,-1000.0,0.0003,2]
[313313487,1707141044206,-3000.0,0.0003001,2]
[313313489,1707141044215,-3000.0,0.0003002,2]
[313313491,1707141044224,-3000.0,0.0003003,2]
[313313493,1707141044234,-3000.0,0.0003004,2]
[313313495,1707141044243,-3000.0,0.0003005,2]
[313313497,1707141044253,-3000.0,0.0003006,2]
[313313498,1707141044262,-3000.0,0.0003007,2]
[313313501,1707141044271,-3000.0,0.0003008,2]
[313313503,1707141044281,-3000.0,0.0003009,2]
[313313505,1707141044290,-3000.0,0.000301,2]
[313313507,1707141044300,-3000.0,0.0003011,2]
[313313509,1707141044310,-3000.0,0.0003012,2]
[313313510,1707141044319,-3000.0,0.0003013,2]
[313313512,1707141044328,-150.0,0.00030137,2]
[313313515,1707141044337,-3000.0,0.0003014,2]
[313313517,1707141044347,-3000.0,0.0003015,2]
[313313518,1707141044356,-3000.0,0.0003016,2]
[313313521,1707141044366,-3000.0,0.0003017,2]
[313313522,1707141044376,-3246.487693,0.0003018,2]
[313313524,1707141044386,-155.0,0.0003037,2]
[313313527,1707141044396,-150.0,0.00030714,2]
[313313528,1707141044405,-152.57148148,0.00030887,2]
[313313531,1707141044415,-500.0,0.00031,3]
[313313533,1707141044424,-1358.1,0.00031148,2]
[313313534,1707141044435,-1000.0,0.0003125,2]
[313313536,1707141044444,-3000.0,0.0003127,2]
[313313538,1707141044453,-150.0,0.00031291,2]
[313313540,1707141044462,-151.11287143,0.00031438,2]
[313313543,1707141044472,-355.74,0.00031644,2]
[313313544,1707141044481,-180.0,0.00031644,2]
[313313546,1707141044491,-155.0,0.0003174,2]
[313313549,1707141044503,-3789.1272701,0.00031778,2]
[313313551,1707141044513,-14452.184491,0.000318,3]
[313313552,1707141044522,-150.0,0.00031867,2]
[313313554,1707141044531,-150.24489274,0.00032,2]
[313313556,1707141044540,-152.57148148,0.00032028,2]
[313313559,1707141044550,-11548.71831169,0.00032355,4]
[313313561,1707141044560,-150.0,0.00032444,2]
[313313562,1707141044569,-203.36570535,0.000325,2]
[313313564,1707141044578,-1000.0,0.000325,2]
[313313566,1707141044587,-517.4,0.0003262,2]
[313313568,1707141044597,-603.25,0.00032704,2]
[313313570,1707141044606,-567.36316,0.0003278,5]
[313313572,1707141044615,-19713.9996666,0.00032831,2]
[313313575,1707141044625,-51849.6906666,0.00032831,2]
[313313577,1707141044635,-67361.0833333,0.00032854,2]
[313313579,1707141044645,-294.25199442,0.00032876,2]
[313313580,1707141044656,-317.64,0.00032877,2]
[313313583,1707141044666,-85714.09,0.00032877,2]
[313313585,1707141044676,-500.0,0.00032877,2]
[313313587,1707141044687,-274.939,0.0003293,2]
[313313588,1707141044696,-839.0,0.0003293,2]
[313313590,1707141044705,-428.0,0.0003293,2]
[313313592,1707141044715,-472.653,0.0003293,2]
[313313594,1707141044724,-320.0,0.0003293,2]
[313313597,1707141044734,-858.0,0.0003293,2]
[313313598,1707141044744,-150.0,0.0003293,2]
[313313600,1707141044753,-342.0,0.0003293,2]
[313313602,1707141044763,-150.0,0.0003293,2]
[313313605,1707141044773,-150.0,0.0003293,2]
[313313606,1707141044782,-1034.0,0.0003293,2]
[313313608,1707141044791,-150.0,0.0003293,2]
[313313611,1707141044801,-150.0,0.0003293,2]
[313313612,1707141044811,-550.0,0.00033,3]
[313313614,1707141044821,-205.0,0.00033,2]
[313313616,1707141044831,-150.0,0.00033021,2]
[313313619,1707141044841,-1000.0,0.00033079,4]
[313313621,1707141044852,-155.0,0.0003311,2]
[313313622,1707141044861,-152.57148148,0.00033169,2]
[313313624,1707141044870,-1000.0,0.00033353,4]
[313313627,1707141044879,-1358.1,0.00033412,2]
[313313629,1707141044889,-150.0,0.00033598,2]
[313313631,1707141044898,-1000.0,0.00033627,4]
[313313632,1707141044907,-731.0,0.00033627,4]
[313313635,1707141044917,-643.54761119,0.000337,4]
[313313637,1707141044926,-643.54761118,0.000337,4]
[313313638,1707141044936,-206.0,0.00033746,19]
[313313640,1707141044945,-1000.0,0.0003375,2]
[313313643,1707141044954,-3000.0,0.0003377,2]
[313313645,1707141044964,-166.51155624,0.00033926,2]
[313313647,1707141044973,-250.0,0.00034,2]
[313313648,1707141044982,-298.01270489,0.00034,2]
[313313650,1707141044990,-150.0,0.00034175,2]
[313313652,1707141045000,-250.0,0.00034274,2]
[313313654,1707141045009,-152.57148148,0.0003431,2]
[313313657,1707141045018,-155.0,0.0003448,2]
[313313658,1707141045027,-250.0,0.00034548,2]
[313313661,1707141045037,-153.77,0.000346,2]
[313313662,1707141045047,-153.77,0.000346,2]
[313313664,1707141045060,-11548.71831169,0.00034718,7]
[313313666,1707141045069,-150.0,0.00034751,2]
[313313669,1707141045078,-250.0,0.00034822,2]
[313313671,1707141045088,-161.57006629,0.00034866,2]
[313313673,1707141045099,-12826.4877878,0.00034876,2]
[313313675,1707141045108,-24394.2283372,0.00034876,2]
[313313677,1707141045117,-3850.54133642,0.000349,2]
[313313678,1707141045127,-3850.54133626,0.000349,2]
[313313681,1707141045138,-3850.54133626,0.000349,2]
[313313683,1707141045147,-3850.54133626,0.000349,2]
[313313685,1707141045156,-3850.54133626,0.000349,2]
[313313687,1707141045166,-3850.54133626,0.000349,2]
[313313689,1707141045175,-3850.54133626,0.000349,2]
[313313690,1707141045185,-3850.54133626,0.000349,2]
[313313692,1707141045194,-508.16906721,0.000349,24]
[313313694,1707141045204,-629.03479938,0.000349,2]
[313313696,1707141045213,-520.66768517,0.00034907,2]
[313313698,1707141045223,-1000.0,0.00035,5]
[313313701,1707141045233,-237.11920133,0.00035,2]
[313313702,1707141045242,-600.0,0.00035,3]
[313313704,1707141045252,-278.65822185,0.00035,2]
[313313707,1707141045261,-155.0,0.00035,2]
[313313708,1707141045271,-1266.14581716,0.00035,4]
[313313711,1707141045280,-1045.8258072,0.00035,2]
[313313713,1707141045290,-18601.97291994,0.00035,2]
[313313715,1707141045299,-548.22048467,0.00035,2]
[313313716,1707141045308,-548.22048467,0.00035,2]
[313313717,1707141045318,-548.22048467,0.00035,2]
[313313718,1707141045328,-548.22048467,0.00035,2]
[313313719,1707141045337,-548.22048467,0.00035,2]
[313313720,1707141045347,-548.22048467,0.00035,2]
[313313721,1707141045356,-548.22048467,0.00035,2]
[313313722,1707141045365,-548.22048467,0.00035,2]
[313313723,1707141045374,-1460.94470202,0.00035,2]
[313313724,1707141045384,-1000.0,0.00035,2]
[313313725,1707141045393,-2130.14308487,0.00035,2]
[313313726,1707141045402,-2130.14308487,0.00035,2]
[313313727,1707141045411,-2130.14308487,0.00035,2]
[313313728,1707141045422,-2130.14308487,0.00035,2]
[313313729,1707141045433,-2130.14308487,0.00035,2]
[313313730,1707141045442,-2130.14308487,0.00035,2]
[313313731,1707141045451,-2130.14308487,0.00035,2]
[313313732,1707141045461,-2130.14308487,0.00035,2]
[313313733,1707141045470,-2130.14308487,0.00035,2]
[313313734,1707141045479,-2130.14308487,0.00035,2]
[313313735,1707141045488,-2130.14308487,0.00035,2]
[313313736,1707141045497,-2130.14308487,0.00035,2]
[313313737,1707141045506,-2130.14308487,0.00035,2]
[313313738,1707141045516,-2130.14308487,0.00035,2]
[313313739,1707141045525,-2130.14308487,0.00035,2]
[313313740,1707141045534,-2130.14308487,0.00035,2]
[313313741,1707141045543,-2130.14308487,0.00035,2]
[313313742,1707141045557,-2130.14308487,0.00035,2]
[313313743,1707141045566,-2130.14308487,0.00035,2]
[313313744,1707141045575,-2130.14308487,0.00035,2]
[313313746,1707141045728,-2130.14308487,0.00035,2]
[313313747,1707141045738,-2130.14308487,0.00035,2]
[313313748,1707141045747,-2130.14308487,0.00035,2]
[313313749,1707141045757,-2130.14308487,0.00035,2]
[313313750,1707141045766,-2130.14308487,0.00035,2]
[313313751,1707141045775,-2130.14308487,0.00035,2]
[313313752,1707141045785,-2130.14308487,0.00035,2]
[313313753,1707141045794,-2130.14308487,0.00035,2]
[313313754,1707141045803,-2130.14308487,0.00035,2]
[313313755,1707141045811,-2130.14308487,0.00035,2]
[313313756,1707141045821,-2130.14308487,0.00035,2]
[313313757,1707141045829,-2130.14308487,0.00035,2]
[313313758,1707141045840,-2130.14308487,0.00035,2]
[313313759,1707141045850,-2130.14308487,0.00035,2]
[313313760,1707141045859,-2130.14308487,0.00035,2]
[313313761,1707141045868,-2130.14308487,0.00035,2]
[313313762,1707141045877,-2130.14308487,0.00035,2]
[313313763,1707141045886,-2130.14308487,0.00035,2]
[313313764,1707141045895,-2130.14308487,0.00035,2]
[313313765,1707141045904,-2130.14308487,0.00035,2]
[313313766,1707141045914,-2130.14308487,0.00035,2]
[313313767,1707141045923,-2130.14308487,0.00035,2]
[313313768,1707141045933,-2130.14308487,0.00035,2]
[313313769,1707141045942,-2130.14308487,0.00035,2]
[313313770,1707141045951,-2130.14308487,0.00035,2]
[313313771,1707141045961,-2130.14308487,0.00035,2]
[313313772,1707141045970,-2130.14308487,0.00035,2]
[313313773,1707141045979,-2130.14308487,0.00035,2]
[313313774,1707141045989,-2130.14308487,0.00035,2]
[313313775,1707141045999,-2130.14308487,0.00035,2]
[313313776,1707141046008,-2130.14308487,0.00035,2]
[313313777,1707141046018,-2130.14308487,0.00035,2]
[313313778,1707141046027,-2130.14308487,0.00035,2]
[313313779,1707141046036,-2130.14308487,0.00035,2]
[313313780,1707141046045,-2130.14308487,0.00035,2]
[313313781,1707141046056,-2130.14308487,0.00035,2]
[313313782,1707141046065,-2130.14308487,0.00035,2]
[313313783,1707141046077,-2130.14308487,0.00035,2]
[313313784,1707141046086,-2130.14308487,0.00035,2]
[313313785,1707141046096,-2130.14308487,0.00035,2]
[313313786,1707141046106,-2130.14308487,0.00035,2]
[313313787,1707141046115,-2130.14308487,0.00035,2]
[313313788,1707141046124,-2130.14308487,0.00035,2]
[313313789,1707141046134,-2130.14308487,0.00035,2]
[313313790,1707141046144,-2130.14308487,0.00035,2]
[313313791,1707141046154,-2130.14308487,0.00035,2]
[313313792,1707141046164,-2130.14308487,0.00035,2]
[313313793,1707141046173,-2130.14308487,0.00035,2]
[313313794,1707141046184,-2130.14308487,0.00035,2]
[313313795,1707141046194,-2130.14308487,0.00035,2]
[313313796,1707141046204,-2130.14308487,0.00035,2]
[313313797,1707141046214,-2130.14308487,0.00035,2]
[313313798,1707141046223,-2130.14308487,0.00035,2]
[313313799,1707141046233,-2130.14308487,0.00035,2]
[313313800,1707141046242,-2130.14308487,0.00035,2]
[313313801,1707141046252,-2130.14308487,0.00035,2]
[313313802,1707141046261,-2130.14308487,0.00035,2]
[313313803,1707141046270,-2130.14308487,0.00035,2]
[313313804,1707141046279,-2130.14308487,0.00035,2]
[313313805,1707141046288,-2130.14308487,0.00035,2]
[313313806,1707141046297,-2130.14308487,0.00035,2]
[313313807,1707141046307,-2130.14308487,0.00035,2]
[313313808,1707141046316,-2130.14308487,0.00035,2]
[313313809,1707141046326,-2130.14308487,0.00035,2]
[313313810,1707141046335,-2130.14308487,0.00035,2]
[313313811,1707141046344,-2130.14308487,0.00035,2]
[313313812,1707141046354,-2130.14308487,0.00035,2]
[313313813,1707141046363,-2130.14308487,0.00035,2]
[313313814,1707141046372,-2130.14308487,0.00035,2]
[313313815,1707141046381,-2130.14308487,0.00035,2]
[313313816,1707141046390,-2130.14308487,0.00035,2]
[313313817,1707141046400,-2130.14308487,0.00035,2]
[313313818,1707141046409,-2130.14308487,0.00035,2]
[313313819,1707141046418,-2130.14308487,0.00035,2]
[313313820,1707141046427,-2130.14308487,0.00035,2]
[313313821,1707141046438,-2130.14308487,0.00035,2]
[313313822,1707141046448,-2130.14308487,0.00035,2]
[313313823,1707141046457,-2130.14308487,0.00035,2]
[313313824,1707141046466,-2130.14308487,0.00035,2]
[313313825,1707141046476,-2130.14308487,0.00035,2]